[Event "Early-Titled-Tuesday-Blitz-April-16-2024"]
[Site "Chess.com"]
[Date "2024.04.16"]
[Round "6"]
[White "cthulhuuu"]
[Black "pfalcon1949"]
[Result "1-0"]
[WhiteElo "2431"]
[BlackElo "1932"]
[TimeControl "180+1"]
[EndTime "9:08:26 PDT"]
[Termination "cthulhuuu won by checkmate"]

1. e4 {[%clk 0:02:53.9]} 1... e6 {[%clk 0:02:59.9]} 2. d3 {[%clk 0:02:54.1]}
2... d5 {[%clk 0:02:59.9]} 3. Nd2 {[%clk 0:02:54.7]} 3... c5 {[%clk 0:02:59.7]}
4. Ngf3 {[%clk 0:02:55.4]} 4... Nc6 {[%clk 0:02:55.1]} 5. g3 {[%clk 0:02:55.4]}
5... Bd6 {[%clk 0:02:55]} 6. Bg2 {[%clk 0:02:55.6]} 6... Nge7 {[%clk 0:02:55.8]}
7. O-O {[%clk 0:02:55.8]} 7... O-O {[%clk 0:02:56.7]} 8. Re1 {[%clk 0:02:56.2]}
8... f6 {[%clk 0:02:56.3]} 9. c3 {[%clk 0:02:55.7]} 9... d4 {[%clk 0:02:56.8]}
10. Nc4 {[%clk 0:02:52.9]} 10... e5 {[%clk 0:02:56.6]} 11. a4 {[%clk 0:02:51.6]}
11... Bc7 {[%clk 0:02:56.1]} 12. cxd4 {[%clk 0:02:49]} 12... Nxd4 {[%clk
0:02:46.9]} 13. Nxd4 {[%clk 0:02:48.3]} 13... Qxd4 {[%clk 0:02:46]} 14. Be3
{[%clk 0:02:47.8]} 14... Qd8 {[%clk 0:02:38.8]} 15. Bxc5 {[%clk 0:02:47.8]}
15... Be6 {[%clk 0:02:39.7]} 16. Rc1 {[%clk 0:02:35.9]} 16... Rc8 {[%clk
0:02:38.3]} 17. Bxa7 {[%clk 0:02:23.2]} 17... Ba5 {[%clk 0:02:30.5]} 18. Nxa5
{[%clk 0:02:17.7]} 18... Qxa5 {[%clk 0:02:31.4]} 19. Be3 {[%clk 0:02:10.9]}
19... Rxc1 {[%clk 0:02:27.9]} 20. Bxc1 {[%clk 0:02:08.2]} 20... Rc8 {[%clk
0:02:24.6]} 21. Bd2 {[%clk 0:02:00.7]} 21... Qa6 {[%clk 0:02:16]} 22. Bc3 {[%clk
0:01:59.6]} 22... Rd8 {[%clk 0:02:10.8]} 23. Bf1 {[%clk 0:01:54.9]} 23... Qc6
{[%clk 0:02:06.8]} 24. a5 {[%clk 0:01:49]} 24... Qc5 {[%clk 0:01:58.8]} 25. Qh5
{[%clk 0:01:34.5]} 25... Nc6 {[%clk 0:01:54.2]} 26. Ra1 {[%clk 0:00:56.1]} 26...
Nd4 {[%clk 0:01:47.5]} 27. a6 {[%clk 0:00:55.3]} 27... bxa6 {[%clk 0:01:39.7]}
28. Rxa6 {[%clk 0:00:55.3]} 28... Bf7 {[%clk 0:01:38]} 29. Qd1 {[%clk
0:00:54.5]} 29... Qb5 {[%clk 0:01:26.4]} 30. Qa4 {[%clk 0:00:52.4]} 30... Qb7
{[%clk 0:01:16.1]} 31. Ra7 {[%clk 0:00:47.5]} 31... Qc8 {[%clk 0:01:12.6]} 32.
Bxd4 {[%clk 0:00:37.6]} 32... exd4 {[%clk 0:01:01.8]} 33. b4 {[%clk 0:00:37.7]}
33... h6 {[%clk 0:00:55.8]} 34. b5 {[%clk 0:00:37.6]} 34... Qc1 {[%clk
0:00:55.4]} 35. Qa1 {[%clk 0:00:27.7]} 35... Qc5 {[%clk 0:00:42.5]} 36. Ra8
{[%clk 0:00:28]} 36... Rc8 {[%clk 0:00:36.6]} 37. Rxc8+ {[%clk 0:00:27.5]} 37...
Qxc8 {[%clk 0:00:35.5]} 38. b6 {[%clk 0:00:28.1]} 38... Be6 {[%clk 0:00:32.3]}
39. Qa7 {[%clk 0:00:27.8]} 39... Qc1 {[%clk 0:00:30.9]} 40. Qb8+ {[%clk
0:00:08.5]} 40... Kh7 {[%clk 0:00:29.5]} 41. Qf4 {[%clk 0:00:08.9]} 41... Bh3
{[%clk 0:00:25.1]} 42. Qxc1 {[%clk 0:00:09]} 42... Bg4 {[%clk 0:00:23.8]} 43. b7
{[%clk 0:00:08.3]} 43... h5 {[%clk 0:00:24.4]} 44. b8=Q {[%clk 0:00:08]} 44...
h4 {[%clk 0:00:25.3]} 45. Qcc8 {[%clk 0:00:07.9]} 45... hxg3 {[%clk 0:00:26.2]}
46. Qxg4 {[%clk 0:00:07.7]} 46... gxh2+ {[%clk 0:00:24.8]} 47. Kxh2 {[%clk
0:00:08.1]} 47... g5 {[%clk 0:00:24.2]} 48. Qh5+ {[%clk 0:00:08.1]} 48... Kg7
{[%clk 0:00:24]} 49. Qbh8# {[%clk 0:00:08.3]} 1-0

[Event "Early-Titled-Tuesday-Blitz-April-16-2024"]
[Site "Chess.com"]
[Date "2024.04.16"]
[Round "6"]
[White "Zhigalko_Sergei"]
[Black "nihalsarin"]
[Result "1-0"]
[WhiteElo "2932"]
[BlackElo "3160"]
[TimeControl "180+1"]
[EndTime "9:08:28 PDT"]
[Termination "Zhigalko_Sergei won on time"]

1. e4 {[%clk 0:03:00.9]} 1... e5 {[%clk 0:03:00]} 2. Nf3 {[%clk 0:03:01.2]} 2...
Nc6 {[%clk 0:02:59]} 3. Bc4 {[%clk 0:03:01.7]} 3... Bc5 {[%clk 0:02:59.2]} 4.
O-O {[%clk 0:03:00.3]} 4... Nf6 {[%clk 0:02:59]} 5. d3 {[%clk 0:03:00.6]} 5...
d6 {[%clk 0:02:58.6]} 6. c3 {[%clk 0:03:00]} 6... a5 {[%clk 0:02:57.6]} 7. Nbd2
{[%clk 0:02:59.8]} 7... O-O {[%clk 0:02:56.3]} 8. h3 {[%clk 0:02:58.3]} 8... Ba7
{[%clk 0:02:53.4]} 9. Re1 {[%clk 0:02:57.7]} 9... Be6 {[%clk 0:02:51.2]} 10. Bb5
{[%clk 0:02:56.9]} 10... Ne7 {[%clk 0:02:51.2]} 11. Nf1 {[%clk 0:02:56.3]} 11...
c6 {[%clk 0:02:51.5]} 12. Ba4 {[%clk 0:02:56.4]} 12... Ng6 {[%clk 0:02:52.2]}
13. Ng3 {[%clk 0:02:54]} 13... d5 {[%clk 0:02:35.8]} 14. exd5 {[%clk 0:02:49]}
14... Nxd5 {[%clk 0:02:36.7]} 15. Ng5 {[%clk 0:02:21.4]} 15... h6 {[%clk
0:02:21.9]} 16. Nxe6 {[%clk 0:02:15]} 16... fxe6 {[%clk 0:02:22.8]} 17. Ne4
{[%clk 0:02:13]} 17... Qh4 {[%clk 0:02:21.3]} 18. Be3 {[%clk 0:02:04.6]} 18...
Nxe3 {[%clk 0:02:12.5]} 19. fxe3 {[%clk 0:02:01.7]} 19... Nf4 {[%clk 0:02:12.9]}
20. Kh2 {[%clk 0:01:36.8]} 20... Nd5 {[%clk 0:02:12.9]} 21. Qd2 {[%clk
0:01:28.1]} 21... Rad8 {[%clk 0:01:54.3]} 22. Bb3 {[%clk 0:01:19.5]} 22... a4
{[%clk 0:01:27.4]} 23. Bxa4 {[%clk 0:01:18]} 23... Nb6 {[%clk 0:01:27.5]} 24.
Qc2 {[%clk 0:01:11.3]} 24... Nxa4 {[%clk 0:01:26.5]} 25. Qxa4 {[%clk 0:01:11.4]}
25... Rxd3 {[%clk 0:01:27.2]} 26. Rf1 {[%clk 0:00:54.8]} 26... Bxe3 {[%clk
0:00:31.8]} 27. Nf6+ {[%clk 0:00:41.2]} 27... Qxf6 {[%clk 0:00:31.7]} 28. Rxf6
{[%clk 0:00:41.6]} 28... Rxf6 {[%clk 0:00:32.6]} 29. Qa8+ {[%clk 0:00:33.2]}
29... Kh7 {[%clk 0:00:32.4]} 30. Qxb7 {[%clk 0:00:34.1]} 30... Bf4+ {[%clk
0:00:29.4]} 31. Kh1 {[%clk 0:00:33.4]} 31... Rd6 {[%clk 0:00:29.6]} 32. Qb4
{[%clk 0:00:30.3]} 32... Rd2 {[%clk 0:00:18.3]} 33. a4 {[%clk 0:00:26.7]} 33...
Re2 {[%clk 0:00:15.6]} 34. Qc4 {[%clk 0:00:17.6]} 34... Rxb2 {[%clk 0:00:15.9]}
35. a5 {[%clk 0:00:16.9]} 35... Rf8 {[%clk 0:00:08.9]} 36. a6 {[%clk 0:00:11.4]}
36... Rfb8 {[%clk 0:00:09.3]} 37. Qe4+ {[%clk 0:00:10.5]} 37... Kh8 {[%clk
0:00:04.7]} 38. a7 {[%clk 0:00:11.4]} 38... Ra8 {[%clk 0:00:03.7]} 39. g3 {[%clk
0:00:10.3]} 39... Bxg3 {[%clk 0:00:01.5]} 40. Qxc6 {[%clk 0:00:10.7]} 1-0

[Event "Early-Titled-Tuesday-Blitz-April-16-2024"]
[Site "Chess.com"]
[Date "2024.04.16"]
[Round "6"]
[White "AlmasRakhmatullaev"]
[Black "Polish_fighter3000"]
[Result "1-0"]
[WhiteElo "2877"]
[BlackElo "3141"]
[TimeControl "180+1"]
[EndTime "9:08:31 PDT"]
[Termination "AlmasRakhmatullaev won by checkmate"]

1. e4 {[%clk 0:03:00.9]} 1... e6 {[%clk 0:02:56.9]} 2. d4 {[%clk 0:03:00.1]}
2... d5 {[%clk 0:02:57.4]} 3. Nc3 {[%clk 0:03:01]} 3... Nf6 {[%clk 0:02:54.4]}
4. Qd3 {[%clk 0:03:00.8]} 4... c5 {[%clk 0:02:50.9]} 5. dxc5 {[%clk 0:02:52]}
5... Bxc5 {[%clk 0:02:49.8]} 6. Nf3 {[%clk 0:02:43.4]} 6... Ng4 {[%clk
0:02:39.6]} 7. Be3 {[%clk 0:02:31.7]} 7... Nxe3 {[%clk 0:02:36.6]} 8. fxe3
{[%clk 0:02:31.1]} 8... dxe4 {[%clk 0:02:35.3]} 9. Qxe4 {[%clk 0:02:29.9]} 9...
Nd7 {[%clk 0:02:31.7]} 10. O-O-O {[%clk 0:02:29]} 10... O-O {[%clk 0:02:25.6]}
11. Kb1 {[%clk 0:02:19.6]} 11... Qe7 {[%clk 0:02:16.1]} 12. Bd3 {[%clk
0:02:14.9]} 12... f5 {[%clk 0:01:52.1]} 13. Qf4 {[%clk 0:02:15.3]} 13... Bd6
{[%clk 0:01:19.4]} 14. Qd4 {[%clk 0:02:14.9]} 14... Nf6 {[%clk 0:01:07]} 15. e4
{[%clk 0:02:07.6]} 15... Bc5 {[%clk 0:01:06.7]} 16. Qc4 {[%clk 0:02:04.3]} 16...
b5 {[%clk 0:01:06.7]} 17. Qxb5 {[%clk 0:01:54.1]} 17... a6 {[%clk 0:00:39.3]}
18. Qc4 {[%clk 0:01:51.9]} 18... Rb8 {[%clk 0:00:39.2]} 19. e5 {[%clk
0:01:28.5]} 19... Ng4 {[%clk 0:00:25.9]} 20. Qf4 {[%clk 0:01:14.9]} 20... Rb4
{[%clk 0:00:15.9]} 21. Qd2 {[%clk 0:01:03.6]} 21... Nf2 {[%clk 0:00:11.8]} 22.
Rhf1 {[%clk 0:00:57.6]} 22... Nxd1 {[%clk 0:00:10.3]} 23. Nxd1 {[%clk
0:00:58.5]} 23... Bb7 {[%clk 0:00:09.3]} 24. Ng5 {[%clk 0:00:47.8]} 24... h6
{[%clk 0:00:05.1]} 25. Nh3 {[%clk 0:00:47.3]} 25... g5 {[%clk 0:00:05.4]} 26.
Nhf2 {[%clk 0:00:39]} 26... Bxg2 {[%clk 0:00:04.5]} 27. Rg1 {[%clk 0:00:38.5]}
27... Qb7 {[%clk 0:00:03.4]} 28. c3 {[%clk 0:00:30.3]} 28... Rh4 {[%clk
0:00:03.1]} 29. Bc2 {[%clk 0:00:21.7]} 29... Bd5 {[%clk 0:00:03.2]} 30. Ne3
{[%clk 0:00:12.6]} 30... Rb8 {[%clk 0:00:03.7]} 31. b3 {[%clk 0:00:10.7]} 31...
Rxh2 {[%clk 0:00:01.8]} 32. Nxd5 {[%clk 0:00:08.2]} 32... Qxd5 {[%clk
0:00:01.4]} 33. Rxg5+ {[%clk 0:00:08.6]} 33... hxg5 {[%clk 0:00:01.1]} 34. Qxg5+
{[%clk 0:00:09.5]} 34... Kh8 {[%clk 0:00:01.7]} 35. Qf6+ {[%clk 0:00:09.9]}
35... Kh7 {[%clk 0:00:02.2]} 36. Ng4 {[%clk 0:00:09]} 36... Rh1+ {[%clk
0:00:01.9]} 37. Kb2 {[%clk 0:00:09]} 37... Qd7 {[%clk 0:00:01.4]} 38. Qg5 {[%clk
0:00:06.1]} 38... Kh8 {[%clk 0:00:01.7]} 39. Nf6 {[%clk 0:00:07]} 39... Qg7
{[%clk 0:00:02.2]} 40. Qf4 {[%clk 0:00:07.7]} 40... Rb6 {[%clk 0:00:02.4]} 41.
Qc4 {[%clk 0:00:08.2]} 41... Rh4 {[%clk 0:00:02.5]} 42. Qxc5 {[%clk 0:00:08.4]}
42... Rb7 {[%clk 0:00:02.4]} 43. Qc8+ {[%clk 0:00:08.5]} 43... Qf8 {[%clk
0:00:02.1]} 44. Qxf8# {[%clk 0:00:08.9]} 1-0

[Event "Early-Titled-Tuesday-Blitz-April-16-2024"]
[Site "Chess.com"]
[Date "2024.04.16"]
[Round "6"]
[White "frederiksvane"]
[Black "Hikaru"]
[Result "1-0"]
[WhiteElo "3065"]
[BlackElo "3266"]
[TimeControl "180+1"]
[EndTime "9:08:33 PDT"]
[Termination "frederiksvane won by checkmate"]

1. e4 {[%clk 0:03:00.9]} 1... d5 {[%clk 0:02:53.5]} 2. exd5 {[%clk 0:03:00.9]}
2... Qxd5 {[%clk 0:02:54.1]} 3. Nc3 {[%clk 0:03:01.5]} 3... Qa5 {[%clk
0:02:53.6]} 4. d4 {[%clk 0:03:01.9]} 4... c6 {[%clk 0:02:54.1]} 5. Nf3 {[%clk
0:03:00.7]} 5... Bf5 {[%clk 0:02:54.3]} 6. Ne5 {[%clk 0:02:53.4]} 6... Nd7
{[%clk 0:02:50.3]} 7. Nc4 {[%clk 0:02:43.8]} 7... Qc7 {[%clk 0:02:47.5]} 8. a4
{[%clk 0:02:41.5]} 8... Ngf6 {[%clk 0:02:42.4]} 9. Qf3 {[%clk 0:02:34]} 9... Bg4
{[%clk 0:02:37.7]} 10. Qf4 {[%clk 0:02:14.4]} 10... Qxf4 {[%clk 0:02:28.6]} 11.
Bxf4 {[%clk 0:02:15.3]} 11... O-O-O {[%clk 0:02:28.2]} 12. h3 {[%clk 0:02:02.1]}
12... Bh5 {[%clk 0:02:09.6]} 13. g4 {[%clk 0:01:45.4]} 13... Bg6 {[%clk
0:02:09.7]} 14. O-O-O {[%clk 0:01:45.5]} 14... Nd5 {[%clk 0:02:07.5]} 15. Bg3
{[%clk 0:01:11.9]} 15... Nxc3 {[%clk 0:02:02.9]} 16. bxc3 {[%clk 0:01:12.7]}
16... e6 {[%clk 0:01:45.8]} 17. Bg2 {[%clk 0:01:04.4]} 17... Nb6 {[%clk
0:01:43.8]} 18. Nxb6+ {[%clk 0:00:56.4]} 18... axb6 {[%clk 0:01:43.6]} 19. Kb2
{[%clk 0:00:48.9]} 19... Bd6 {[%clk 0:01:43]} 20. Bxd6 {[%clk 0:00:44.4]} 20...
Rxd6 {[%clk 0:01:43.9]} 21. Ra1 {[%clk 0:00:43.3]} 21... Kc7 {[%clk 0:01:42]}
22. a5 {[%clk 0:00:42.1]} 22... b5 {[%clk 0:01:39]} 23. Kb3 {[%clk 0:00:37.4]}
23... Ra8 {[%clk 0:01:37.7]} 24. Rhe1 {[%clk 0:00:35]} 24... f6 {[%clk
0:01:32.6]} 25. Be4 {[%clk 0:00:25.5]} 25... Bf7 {[%clk 0:01:32.2]} 26. Kb4
{[%clk 0:00:25.2]} 26... h6 {[%clk 0:01:23.4]} 27. Bd3 {[%clk 0:00:21.1]} 27...
Rdd8 {[%clk 0:01:15.9]} 28. f4 {[%clk 0:00:20.6]} 28... Kd6 {[%clk 0:01:08.8]}
29. h4 {[%clk 0:00:18.5]} 29... Ra7 {[%clk 0:01:05.4]} 30. c4 {[%clk 0:00:10.2]}
30... bxc4 {[%clk 0:01:05]} 31. Bxc4 {[%clk 0:00:11.1]} 31... Bg8 {[%clk
0:00:50.5]} 32. Ra3 {[%clk 0:00:09.8]} 32... Rb8 {[%clk 0:00:49.3]} 33. Rae3
{[%clk 0:00:05.6]} 33... b6 {[%clk 0:00:49.9]} 34. axb6 {[%clk 0:00:06]} 34...
Rxb6+ {[%clk 0:00:49.9]} 35. Kc3 {[%clk 0:00:06.9]} 35... Ra3+ {[%clk
0:00:47.7]} 36. Bb3 {[%clk 0:00:07.4]} 36... Rb8 {[%clk 0:00:45.7]} 37. Kd2
{[%clk 0:00:07.6]} 37... Rb4 {[%clk 0:00:40.6]} 38. Kc3 {[%clk 0:00:07.1]} 38...
Rb8 {[%clk 0:00:36.1]} 39. Kb2 {[%clk 0:00:07.6]} 39... Ra7 {[%clk 0:00:33.2]}
40. R3e2 {[%clk 0:00:04.2]} 40... c5 {[%clk 0:00:26.6]} 41. dxc5+ {[%clk
0:00:04.5]} 41... Kxc5 {[%clk 0:00:27.5]} 42. Kc3 {[%clk 0:00:05.1]} 42... Re7
{[%clk 0:00:27.5]} 43. Bxe6 {[%clk 0:00:04.1]} 43... Rc7 {[%clk 0:00:20.7]} 44.
Bxg8 {[%clk 0:00:04]} 44... Rxg8 {[%clk 0:00:21.6]} 45. Re4 {[%clk 0:00:04.1]}
45... Kd6+ {[%clk 0:00:19.8]} 46. Kd3 {[%clk 0:00:04.4]} 46... Ra7 {[%clk
0:00:17.5]} 47. Rd4+ {[%clk 0:00:04.9]} 47... Kc5 {[%clk 0:00:18]} 48. Rc4+
{[%clk 0:00:05.4]} 48... Kd5 {[%clk 0:00:18.6]} 49. Ree4 {[%clk 0:00:05.6]}
49... Ra3+ {[%clk 0:00:17.8]} 50. c3 {[%clk 0:00:06.2]} 50... Ra1 {[%clk
0:00:18.6]} 51. Red4+ {[%clk 0:00:06.2]} 51... Ke6 {[%clk 0:00:18.9]} 52. f5+
{[%clk 0:00:06.8]} 52... Ke5 {[%clk 0:00:15.6]} 53. Rc5# {[%clk 0:00:07.2]} 1-0

[Event "Early-Titled-Tuesday-Blitz-April-16-2024"]
[Site "Chess.com"]
[Date "2024.04.16"]
[Round "6"]
[White "FARIZA2018"]
[Black "Titus369"]
[Result "1-0"]
[WhiteElo "2553"]
[BlackElo "2646"]
[TimeControl "180+1"]
[EndTime "9:08:37 PDT"]
[Termination "FARIZA2018 won on time"]

1. e4 {[%clk 0:03:00.9]} 1... c5 {[%clk 0:02:48.2]} 2. Nf3 {[%clk 0:03:01]} 2...
d6 {[%clk 0:02:47.8]} 3. d4 {[%clk 0:03:01.3]} 3... cxd4 {[%clk 0:02:48.7]} 4.
Nxd4 {[%clk 0:03:01.8]} 4... Nf6 {[%clk 0:02:49.2]} 5. Nc3 {[%clk 0:03:02]} 5...
a6 {[%clk 0:02:49.5]} 6. Be2 {[%clk 0:03:01]} 6... e6 {[%clk 0:02:47.3]} 7. Be3
{[%clk 0:03:00.5]} 7... Nbd7 {[%clk 0:02:44.4]} 8. O-O {[%clk 0:03:00.5]} 8...
b5 {[%clk 0:02:44.7]} 9. f4 {[%clk 0:02:51.9]} 9... Bb7 {[%clk 0:02:41.2]} 10.
Bf3 {[%clk 0:02:36]} 10... b4 {[%clk 0:02:38.2]} 11. Na4 {[%clk 0:02:12.8]}
11... Nxe4 {[%clk 0:02:31.9]} 12. f5 {[%clk 0:02:08]} 12... e5 {[%clk
0:02:20.6]} 13. Nb3 {[%clk 0:02:02.5]} 13... Be7 {[%clk 0:02:08.4]} 14. Qd3
{[%clk 0:01:47.2]} 14... Ndf6 {[%clk 0:01:47.5]} 15. Rae1 {[%clk 0:01:09.6]}
15... O-O {[%clk 0:01:38.4]} 16. Bb6 {[%clk 0:01:09.6]} 16... Qe8 {[%clk
0:01:32.4]} 17. Na5 {[%clk 0:01:00.9]} 17... Qxa4 {[%clk 0:01:12]} 18. Nxb7
{[%clk 0:01:00.2]} 18... Qc6 {[%clk 0:01:07.6]} 19. Bf2 {[%clk 0:00:32.5]} 19...
Qxb7 {[%clk 0:00:43.8]} 20. Bxe4 {[%clk 0:00:32.3]} 20... d5 {[%clk 0:00:43.4]}
21. Bf3 {[%clk 0:00:24.1]} 21... e4 {[%clk 0:00:39]} 22. Qe3 {[%clk 0:00:22.8]}
22... Rac8 {[%clk 0:00:32.4]} 23. Bd1 {[%clk 0:00:22.1]} 23... Bc5 {[%clk
0:00:29.1]} 24. Qg5 {[%clk 0:00:21.2]} 24... h6 {[%clk 0:00:24.6]} 25. Qg3
{[%clk 0:00:19.5]} 25... d4 {[%clk 0:00:21.5]} 26. Kh1 {[%clk 0:00:17.7]} 26...
e3 {[%clk 0:00:20.3]} 27. Bg1 {[%clk 0:00:17.9]} 27... Ne4 {[%clk 0:00:19.2]}
28. Qg4 {[%clk 0:00:16.5]} 28... Qe7 {[%clk 0:00:14.7]} 29. Rf4 {[%clk
0:00:11.9]} 29... Nf6 {[%clk 0:00:13.3]} 30. Qh3 {[%clk 0:00:11.3]} 30... Qe5
{[%clk 0:00:10.5]} 31. Rff1 {[%clk 0:00:10.1]} 31... Bd6 {[%clk 0:00:07.4]} 32.
Qf3 {[%clk 0:00:06.8]} 32... Ne4 {[%clk 0:00:06.7]} 33. Qg4 {[%clk 0:00:04.2]}
33... Kh8 {[%clk 0:00:04.8]} 34. g3 {[%clk 0:00:03.7]} 34... Nd2 {[%clk
0:00:04.6]} 35. Rf4 {[%clk 0:00:03.4]} 35... Qd5+ {[%clk 0:00:02.3]} 36. Bf3
{[%clk 0:00:03.8]} 36... Nxf3 {[%clk 0:00:02.4]} 37. Rxf3 {[%clk 0:00:04.2]}
37... Rxc2 {[%clk 0:00:02.4]} 38. f6 {[%clk 0:00:04.7]} 38... g6 {[%clk
0:00:02.3]} 39. Rf1 {[%clk 0:00:04.1]} 39... e2 {[%clk 0:00:02]} 40. Re1 {[%clk
0:00:04.4]} 40... d3 {[%clk 0:00:02]} 41. Be3 {[%clk 0:00:03]} 41... Kh7 {[%clk
0:00:01.1]} 42. Kg2 {[%clk 0:00:02.2]} 42... d2 {[%clk 0:00:01.3]} 43. Qh3
{[%clk 0:00:02.2]} 1-0

[Event "Early-Titled-Tuesday-Blitz-April-16-2024"]
[Site "Chess.com"]
[Date "2024.04.16"]
[Round "6"]
[White "mariangie523"]
[Black "LuisFSiles"]
[Result "0-1"]
[WhiteElo "2157"]
[BlackElo "2362"]
[TimeControl "180+1"]
[EndTime "9:08:38 PDT"]
[Termination "LuisFSiles won on time"]

1. e4 {[%clk 0:03:00.9]} 1... c5 {[%clk 0:02:59]} 2. Nf3 {[%clk 0:03:00.1]} 2...
Nc6 {[%clk 0:02:59.2]} 3. d4 {[%clk 0:02:59.8]} 3... cxd4 {[%clk 0:03:00.1]} 4.
Nxd4 {[%clk 0:02:59.9]} 4... Nf6 {[%clk 0:03:00.7]} 5. f3 {[%clk 0:03:00.1]}
5... e5 {[%clk 0:02:49]} 6. Nb3 {[%clk 0:02:59.4]} 6... d5 {[%clk 0:02:46.8]} 7.
Bg5 {[%clk 0:02:58.8]} 7... d4 {[%clk 0:02:38.4]} 8. Bc4 {[%clk 0:02:51.9]} 8...
h6 {[%clk 0:02:33.9]} 9. Bh4 {[%clk 0:02:51.8]} 9... Be7 {[%clk 0:02:32.6]} 10.
Bf2 {[%clk 0:02:44.9]} 10... O-O {[%clk 0:02:30.8]} 11. O-O {[%clk 0:02:44.7]}
11... Nd7 {[%clk 0:02:04.9]} 12. c3 {[%clk 0:02:21.8]} 12... Nb6 {[%clk
0:02:03.6]} 13. Be2 {[%clk 0:02:17.6]} 13... Be6 {[%clk 0:01:47.4]} 14. cxd4
{[%clk 0:01:49.2]} 14... Bxb3 {[%clk 0:01:45.9]} 15. Qxb3 {[%clk 0:01:36.8]}
15... Nxd4 {[%clk 0:01:44.3]} 16. Bxd4 {[%clk 0:01:35.8]} 16... Qxd4+ {[%clk
0:01:43.7]} 17. Kh1 {[%clk 0:01:35.1]} 17... Rfd8 {[%clk 0:01:27.3]} 18. Rd1
{[%clk 0:01:15.7]} 18... Qf2 {[%clk 0:01:26.9]} 19. Nc3 {[%clk 0:01:12.4]} 19...
Bg5 {[%clk 0:01:04.2]} 20. Rf1 {[%clk 0:00:46.8]} 20... Qh4 {[%clk 0:01:03.5]}
21. g3 {[%clk 0:00:46.5]} 21... Qh3 {[%clk 0:01:02.3]} 22. Rad1 {[%clk
0:00:37.6]} 22... h5 {[%clk 0:00:58.1]} 23. Rfe1 {[%clk 0:00:22.9]} 23... Bd2
{[%clk 0:00:50.8]} 24. Bf1 {[%clk 0:00:18.5]} 24... Qc8 {[%clk 0:00:48.3]} 25.
Re2 {[%clk 0:00:16.1]} 25... Bxc3 {[%clk 0:00:46]} 26. Rxd8+ {[%clk 0:00:16.7]}
26... Qxd8 {[%clk 0:00:45.3]} 27. Qxc3 {[%clk 0:00:16.8]} 27... Qd1 {[%clk
0:00:40.7]} 28. Re1 {[%clk 0:00:15.3]} 28... Qd6 {[%clk 0:00:39.2]} 29. Bb5
{[%clk 0:00:12.7]} 29... h4 {[%clk 0:00:38.7]} 30. Kg2 {[%clk 0:00:11.8]} 30...
Rc8 {[%clk 0:00:36.1]} 31. Qe3 {[%clk 0:00:10.6]} 31... Rc2+ {[%clk 0:00:34.9]}
32. Re2 {[%clk 0:00:10.8]} 32... Qc7 {[%clk 0:00:29]} 33. a4 {[%clk 0:00:09.3]}
33... Rc1 {[%clk 0:00:28.1]} 34. gxh4 {[%clk 0:00:08.4]} 34... Nd7 {[%clk
0:00:27.3]} 35. Qg5 {[%clk 0:00:07.8]} 35... Nf6 {[%clk 0:00:25.8]} 36. h5
{[%clk 0:00:06.5]} 36... Nh7 {[%clk 0:00:22.6]} 37. Qg4 {[%clk 0:00:05.9]} 37...
a6 {[%clk 0:00:15.3]} 38. Bd3 {[%clk 0:00:04.5]} 38... Rd1 {[%clk 0:00:15.7]}
39. Bc2 {[%clk 0:00:03.1]} 39... Rc1 {[%clk 0:00:13.9]} 40. Bb3 {[%clk
0:00:02.7]} 40... Qb6 {[%clk 0:00:12.6]} 41. Ba2 {[%clk 0:00:02.1]} 41... Qg1+
{[%clk 0:00:11.7]} 42. Kh3 {[%clk 0:00:01.6]} 42... Ng5+ {[%clk 0:00:12.1]} 43.
Kh4 {[%clk 0:00:01.4]} 43... Nxf3+ {[%clk 0:00:01.6]} 44. Qxf3 {[%clk
0:00:01.3]} 44... Qxh2+ {[%clk 0:00:02]} 0-1

[Event "Early-Titled-Tuesday-Blitz-April-16-2024"]
[Site "Chess.com"]
[Date "2024.04.16"]
[Round "6"]
[White "rhwr"]
[Black "gau248"]
[Result "0-1"]
[WhiteElo "2283"]
[BlackElo "2578"]
[TimeControl "180+1"]
[EndTime "9:08:39 PDT"]
[Termination "gau248 won on time"]

1. e4 {[%clk 0:03:00]} 1... e5 {[%clk 0:02:57]} 2. Bc4 {[%clk 0:02:56.4]} 2...
Nf6 {[%clk 0:02:53.3]} 3. d3 {[%clk 0:02:56.9]} 3... c6 {[%clk 0:01:22.9]} 4.
Nf3 {[%clk 0:02:53.7]} 4... Be7 {[%clk 0:01:20.6]} 5. O-O {[%clk 0:02:51.7]}
5... d5 {[%clk 0:01:20.2]} 6. exd5 {[%clk 0:02:49]} 6... cxd5 {[%clk 0:01:20]}
7. Bb5+ {[%clk 0:02:49]} 7... Bd7 {[%clk 0:01:20.1]} 8. c4 {[%clk 0:02:14.9]}
8... Bxb5 {[%clk 0:01:14.7]} 9. cxb5 {[%clk 0:02:14.9]} 9... Nbd7 {[%clk
0:01:14.7]} 10. Re1 {[%clk 0:02:14]} 10... Qc7 {[%clk 0:01:12.3]} 11. Nc3 {[%clk
0:02:10.9]} 11... O-O {[%clk 0:01:11.8]} 12. d4 {[%clk 0:02:10.1]} 12... e4
{[%clk 0:01:11.1]} 13. Nh4 {[%clk 0:02:02.5]} 13... Rfe8 {[%clk 0:01:08.4]} 14.
Nf5 {[%clk 0:01:59.2]} 14... Bb4 {[%clk 0:01:07.2]} 15. Bd2 {[%clk 0:01:54.1]}
15... g6 {[%clk 0:01:06.5]} 16. Ne3 {[%clk 0:01:53]} 16... Nb6 {[%clk
0:01:04.7]} 17. Rc1 {[%clk 0:01:51.5]} 17... Qd7 {[%clk 0:01:03.5]} 18. Qb3
{[%clk 0:01:47.9]} 18... Bxc3 {[%clk 0:00:56]} 19. bxc3 {[%clk 0:01:47.4]} 19...
Rac8 {[%clk 0:00:55.5]} 20. c4 {[%clk 0:01:42.4]} 20... dxc4 {[%clk 0:00:43.3]}
21. Nxc4 {[%clk 0:01:42.2]} 21... Qxd4 {[%clk 0:00:41.8]} 22. Be3 {[%clk
0:01:42.4]} 22... Qd8 {[%clk 0:00:36.4]} 23. Red1 {[%clk 0:01:40.2]} 23... Nbd5
{[%clk 0:00:32.3]} 24. Bxa7 {[%clk 0:01:14.6]} 24... Qe7 {[%clk 0:00:26.1]} 25.
a4 {[%clk 0:01:06.2]} 25... b6 {[%clk 0:00:25.2]} 26. Bxb6 {[%clk 0:01:05.6]}
26... Rxc4 {[%clk 0:00:25]} 27. Rxc4 {[%clk 0:01:01.5]} 27... Nxb6 {[%clk
0:00:25.4]} 28. Rc6 {[%clk 0:01:01.2]} 28... Nbd7 {[%clk 0:00:24.9]} 29. a5
{[%clk 0:00:58.7]} 29... Ne5 {[%clk 0:00:24.9]} 30. Rc3 {[%clk 0:00:43.1]} 30...
Nd3 {[%clk 0:00:23.9]} 31. b6 {[%clk 0:00:36.8]} 31... Rb8 {[%clk 0:00:16]} 32.
a6 {[%clk 0:00:34.3]} 32... Ng4 {[%clk 0:00:13.5]} 33. b7 {[%clk 0:00:22.6]}
33... Rd8 {[%clk 0:00:12.8]} 34. b8=Q {[%clk 0:00:19.9]} 34... Rxb8 {[%clk
0:00:12]} 35. Qxb8+ {[%clk 0:00:19.5]} 35... Kg7 {[%clk 0:00:12.2]} 36. a7
{[%clk 0:00:18.4]} 36... Qf6 {[%clk 0:00:11.5]} 37. Rcxd3 {[%clk 0:00:10]} 37...
Qxf2+ {[%clk 0:00:10.9]} 38. Kh1 {[%clk 0:00:09.8]} 38... Qe2 {[%clk 0:00:07.8]}
0-1